bitfinex/quotes_ETHUSD_20241108
["timestamp","ask_amount","ask_price","bid_price","bid_amount"]
[1731065810078,2.58,2919.0,2918.5,2.07039419]
[1731065814086,2.58,2919.0,2918.7,1.52039419]
[1731065814783,2.58,2919.0,2918.7,1.72743361]
[1731065815458,2.58,2919.0,2918.7,0.20703942]
[1731065816188,2.58,2919.0,2918.5,2.07039419]
[1731065816346,0.7552,2918.9,2918.5,2.07039419]
[1731065816553,0.7552,2918.9,2918.4,0.55]
[1731065817461,0.7552,2918.9,2918.5,1.52039419]
[1731065823950,2.58,2919.0,2918.7,1.52039419]
[1731065824463,2.58,2919.0,2918.7,1.74894361]
[1731065826395,2.58,2919.0,2918.9,1.52039419]
[1731065826594,2.58,2919.0,2918.9,2.07039419]
[1731065826799,2.58,2919.0,2918.9,2.83549419]
[1731065826970,2.58,2919.0,2918.9,5.83549419]
[1731065827151,2.58,2919.0,2918.9,6.59393797]
[1731065833193,2.58,2919.0,2918.9,6.60393797]
[1731065833889,2.58,2919.0,2918.9,6.59393797]
[1731065838780,2.58,2919.0,2918.9,6.66244431]
[1731065838985,2.58,2919.0,2918.9,6.59393797]
[1731065839613,2.58,2919.0,2918.9,6.60393797]
[1731065840493,2.58,2919.0,2918.9,5.08354378]
[1731065840697,2.58,2919.0,2918.9,5.07354378]
[1731065840894,2.58,2919.0,2918.9,1.30844378]
[1731065841096,2.58,2919.0,2918.9,2.07039419]
[1731065844125,2.58,2919.0,2918.9,5.90400314]
[1731065844297,2.58,2919.0,2918.9,5.83549419]
[1731065845100,2.58,2919.0,2918.9,5.90400316]
[1731065847526,2.58,2919.0,2918.9,5.83549419]
[1731065847694,2.58,2919.0,2918.9,6.57893387]
[1731065848538,2.58,2919.0,2918.9,1.29343968]
[1731065848730,2.58,2919.0,2918.9,5.07039419]
[1731065849026,2.58,2919.0,2918.9,2.07039419]
[1731065849223,2.58,2919.0,2918.9,0.55]
[1731065849440,2.58,2919.0,2918.9,1.52039419]
[1731065849595,2.58,2919.0,2918.9,2.07039419]
[1731065850788,2.58,2919.0,2918.9,2.57743361]
[1731065864855,2.58,2919.0,2918.9,6.41104312]
[1731065865036,2.58,2919.0,2918.9,6.35253361]
[1731065865348,2.58,2919.0,2918.9,1.82213942]
[1731065865545,2.58,2919.0,2918.9,5.83549419]
[1731065865845,2.58,2919.0,2918.9,6.34509472]
[1731065868929,2.58,2919.0,2918.9,6.35509472]
[1731065881554,2.58,2919.0,2918.9,1.83470053]
[1731065881855,2.58,2919.0,2918.9,6.35509472]
[1731065882068,2.58,2919.0,2918.9,7.44364361]
[1731065885549,2.58,2919.0,2918.9,4.63854889]
[1731065885755,0.8109,2918.9,2918.4,0.7751]
[1731065886756,0.8109,2918.9,2918.4,0.7851]
[1731065886956,0.8109,2918.9,2918.8,2.07039419]
[1731065891001,2.58,2919.0,2918.9,3.55]
[1731065891301,2.58,2919.0,2918.9,4.28658884]
[1731065892704,2.58,2919.0,2918.9,4.36509587]
[1731065892878,2.58,2919.0,2918.9,5.06168884]
[1731065894744,2.58,2919.0,2918.9,5.05168884]
[1731065894896,2.58,2919.0,2918.9,5.06168884]
[1731065897485,2.58,2919.0,2918.9,5.56287516]
[1731065897695,2.58,2919.0,2918.9,5.57287516]
[1731065898298,2.58,2919.0,2918.9,5.56287516]
[1731065899604,2.58,2919.0,2918.9,4.80777516]
[1731065900224,2.58,2919.0,2918.9,4.79777516]
[1731065919949,2.58,2919.0,2918.9,1.28658884]
[1731065920160,3.3408,2919.0,2918.9,2.07039419]
[1731065922030,2.58,2919.0,2918.9,2.07039419]
[1731065932865,2.58,2919.0,2918.9,2.08039419]
[1731065939799,2.58,2919.0,2918.9,0.55]
[1731065939958,2.58,2919.0,2918.9,2.13890268]
[1731065940140,2.58,2919.0,2918.9,2.07039419]
[1731065940445,2.58,2919.0,2918.9,5.81766248]
[1731065942145,2.38500995,2919.0,2918.9,5.89616831]
[1731065942345,1.95565575,2919.0,2918.9,5.82766248]
[1731065942774,1.35783838,2919.0,2918.9,6.57836248]
[1731065942975,2.52249107,2920.9,2919.5,0.01]
[1731065942976,0.8287,2919.9,2919.5,0.01]
[1731065943180,0.8287,2919.9,2919.8,1.52039419]
[1731065943474,0.05057986,2920.8,2919.9,0.55]
[1731065943475,0.8287,2920.6,2919.9,0.55]
[1731065943680,0.8287,2920.6,2920.5,0.55]
[1731065943893,0.8287,2920.6,2919.7,3.01]
[1731065943894,0.8287,2920.6,2919.7,3.0]
[1731065944045,0.8172,2920.5,2919.2,3.0]
[1731065944251,0.8172,2920.3,2919.2,4.52039419]
[1731065944550,0.8172,2920.3,2919.4,1.52039419]
[1731065944866,0.8172,2920.3,2918.8,0.01]
[1731065945067,0.8172,2920.3,2919.3,1.52039419]
[1731065946255,0.8172,2920.3,2919.6,0.55]
[1731065946451,0.8172,2920.3,2919.5,1.52039419]
[1731065958184,0.8172,2920.3,2919.3,0.35593904]
[1731065958868,0.8005,2920.1,2919.4,1.52039419]
[1731065975814,0.8005,2920.1,2919.5,0.55]
[1731065976329,0.8005,2920.1,2919.6,1.52039419]
[1731065981437,0.8005,2920.1,2919.5,0.55]
[1731065982212,0.8005,2920.1,2919.5,0.7926336]
[1731065985352,0.8005,2920.1,2919.8,0.55]
[1731065986653,0.8005,2920.1,2919.9,1.52039419]
[1731065986960,0.8005,2920.1,2920.0,0.55]
[1731065991354,0.8123,2920.8,2920.0,0.55]
[1731065991555,0.8123,2920.8,2920.0,0.75703942]
[1731065994312,0.8123,2920.8,2920.5,1.52039419]
[1731065995962,0.8123,2920.8,2920.4,0.55]
[1731065999709,0.8123,2920.8,2920.2,0.55]
[1731066004591,0.8123,2920.8,2920.3,1.52039419]
[1731066004820,0.8123,2920.8,2920.5,0.55]
[1731066005921,0.8123,2920.8,2920.1,0.55]
[1731066006132,0.8123,2920.8,2919.9,0.35624072]
[1731066009283,0.8123,2920.8,2919.8,0.55]
[1731066011023,0.7569,2920.7,2919.3,0.7651]
[1731066011224,0.7569,2920.5,2919.6,0.55]
[1731066013289,0.7569,2920.5,2919.3,0.7651]
[1731066013290,0.7569,2920.5,2919.7,1.52039419]
[1731066013501,0.7569,2920.5,2919.7,1.87596484]
[1731066020639,0.7569,2920.5,2919.7,2.06356132]
[1731066025337,0.7569,2920.5,2919.9,1.52039419]
[1731066025900,0.7569,2920.5,2920.1,1.52039419]
[1731066026114,0.7569,2920.5,2920.3,1.52039419]
[1731066026725,0.7736,2920.8,2920.3,1.52039419]
[1731066027448,4.34639591,2921.5,2920.5,1.52039419]
[1731066027748,0.5485783,2921.4,2920.6,0.55]
[1731066027948,0.7385444,2921.6,2920.6,0.55]
[1731066028455,1.78184435,2922.2,2921.2,1.52039419]
[1731066028624,0.0093602,2922.4,2921.6,1.52039419]
[1731066028953,0.21475734,2922.3,2921.6,1.52039419]
[1731066029139,0.0093602,2922.4,2921.6,1.52039419]
[1731066029343,0.0093602,2922.4,2921.5,0.55]
[1731066030351,0.7553,2922.3,2921.3,0.55]
[1731066030723,0.7553,2922.3,2921.4,0.7583]
[1731066030948,0.7553,2922.3,2921.5,0.55]
[1731066031315,0.7553,2922.3,2921.4,0.7583]
[1731066031316,0.7553,2922.3,2921.3,0.55]
[1731066031516,0.7607,2922.1,2921.3,0.55]
[1731066035161,0.7607,2922.1,2921.5,0.55]
[1731066035568,0.7607,2922.3,2922.1,0.55]
[1731066035868,0.0093602,2922.4,2922.0,1.52039419]
[1731066035869,0.0093602,2922.4,2922.3,0.55]
[1731066036037,0.0093602,2922.4,2922.3,0.82547136]
[1731066036369,0.0093602,2922.4,2922.3,0.75703942]
[1731066037324,0.0093602,2922.4,2922.3,0.82547022]
[1731066037534,0.0093602,2922.4,2922.1,0.56]
[1731066040037,0.0093602,2922.4,2922.1,0.01]
[1731066040242,0.8053,2922.3,2922.1,0.01]
[1731066040569,0.8053,2922.3,2921.7,0.01]
[1731066040774,0.8053,2922.3,2921.5,0.01]
[1731066041879,0.8053,2922.3,2921.5,0.56]
[1731066042335,0.8053,2922.3,2921.5,0.43265]
[1731066042540,0.8053,2922.3,2921.2,0.01]
[1731066043135,0.8053,2922.3,2921.5,0.01]
[1731066045439,0.8053,2922.3,2921.5,0.56]
[1731066045660,0.8053,2922.3,2921.7,0.55]
[1731066045862,0.8053,2922.3,2921.9,0.55]
[1731066046073,0.8053,2922.3,2921.8,3.28470959]
[1731066046074,0.0093602,2922.4,2922.1,0.55]
[1731066047241,0.0093602,2922.4,2921.7,0.01]
[1731066047440,0.0093602,2922.4,2921.7,0.56]
[1731066049083,0.0093602,2922.4,2921.7,0.5588341]
[1731066050277,0.0093602,2922.4,2921.8,3.36314962]
[1731066050486,0.0093602,2922.4,2922.1,4.05820959]
[1731066051583,0.0093602,2922.4,2922.2,0.55]
[1731066052388,0.0093602,2922.4,2922.1,0.01]
[1731066052552,0.0093602,2922.4,2922.0,0.55]
[1731066052883,0.0093602,2922.4,2922.1,0.01]
[1731066054286,0.0093602,2922.4,2922.2,0.55]
[1731066054486,0.0093602,2922.4,2922.1,0.01]
[1731066056102,0.0093602,2922.4,2922.2,0.55]
[1731066056912,0.0093602,2922.4,2922.1,0.01]
[1731066057559,0.0093602,2922.4,2922.2,0.55]
[1731066057782,0.0093602,2922.4,2922.1,0.01]
[1731066058995,0.0093602,2922.4,2922.2,0.55]
[1731066059502,0.0093602,2922.4,2922.1,0.01]
[1731066064519,0.73889812,2922.5,2922.1,0.01]
[1731066069317,0.73889812,2922.5,2922.2,0.55]
[1731066070019,0.73889812,2922.5,2922.1,0.56]
[1731066075130,0.73889812,2922.5,2922.1,0.01]
[1731066078332,0.73889812,2922.5,2922.1,1.52617952]
[1731066078534,0.73889812,2922.5,2922.2,0.55]
[1731066085338,0.73889812,2922.5,2922.3,1.51617952]
[1731066085558,0.73889812,2922.5,2922.4,0.535895]
[1731066086000,0.73889812,2922.5,2922.2,0.20761795]
[1731066087942,0.73889812,2922.5,2922.3,0.55]
[1731066092843,0.7665,2922.9,2922.3,2.06617952]
[1731066093147,0.7665,2922.9,2922.3,2.29455927]
[1731066095629,0.7665,2922.9,2922.5,0.55]
[1731066095828,0.7665,2922.9,2922.4,0.55]
[1731066099925,0.7665,2922.9,2922.4,0.61842961]
[1731066100126,0.7665,2922.9,2922.5,1.51617952]
[1731066100372,0.7665,2922.9,2922.6,0.55]
[1731066100851,0.7665,2922.9,2922.5,0.55]
[1731066108090,0.01,2923.0,2922.9,0.55]
[1731066113320,0.01,2923.0,2922.9,1.3394]
[1731066113963,0.01,2923.0,2922.9,1.41781561]
[1731066114191,0.01,2923.0,2922.9,4.71121512]
[1731066114395,0.01,2923.0,2922.9,6.22739464]
[1731066114700,0.01,2923.0,2922.9,4.71121512]
[1731066115233,0.05133974,2923.3,2922.9,4.71121512]
[1731066115234,0.05133974,2923.3,2923.2,1.3884]
[1731066115509,0.7937,2924.2,2923.7,0.01]
[1731066115672,0.7937,2924.2,2924.1,1.51617952]
[1731066115872,0.7937,2924.2,2924.1,2.06617952]
[1731066116080,0.823,2925.0,2924.2,0.55]
[1731066116311,0.823,2924.8,2924.2,0.55]
[1731066117112,0.823,2924.8,2924.3,1.51617952]
[1731066117417,0.823,2924.8,2924.2,0.55]
[1731066120339,0.7614,2924.7,2923.4,0.7696]
[1731066120557,0.755,2924.5,2923.2,0.7773]
[1731066120734,1.51617952,2924.4,2923.2,1.52617952]
[1731066120934,0.01,2924.2,2923.0,0.01]
[1731066121274,0.755,2924.1,2923.1,1.51617952]
[1731066122771,0.755,2924.1,2923.2,0.55]
[1731066122944,0.755,2924.1,2923.3,1.51617952]
[1731066123144,0.755,2924.1,2923.1,1.51617952]
[1731066123446,0.755,2924.1,2923.0,0.56]
[1731066123758,0.755,2924.1,2923.0,1.02101189]
[1731066128487,0.755,2924.1,2923.3,0.55]
[1731066128863,0.755,2924.1,2923.5,0.55]
[1731066130792,0.755,2924.1,2923.5,3.83281887]
[1731066132397,0.8329,2925.0,2923.9,0.55]
[1731066134777,0.7721,2924.5,2923.4,0.01]
[1731066134992,0.7721,2924.3,2923.4,0.01]
[1731066135703,0.7721,2924.3,2923.0,0.82767338]
[1731066135867,0.7721,2924.3,2923.2,0.01]
[1731066136694,0.7721,2924.3,2923.3,0.55]
[1731066147035,0.7606,2924.1,2923.2,0.55]
[1731066149341,0.7725,2923.6,2923.1,0.35670564]
[1731066160963,0.7725,2923.6,2923.3,1.51561651]
[1731066161137,0.7725,2923.6,2923.4,0.55]
[1731066161937,0.7744,2924.2,2923.4,0.55]
[1731066163062,0.7744,2924.2,2923.4,1.3267]
[1731066163867,0.7744,2924.2,2923.5,1.51561651]
[1731066164071,0.7744,2924.2,2923.8,0.55]
[1731066164236,0.7905,2924.8,2924.0,0.55]
[1731066165730,0.7905,2924.8,2923.8,0.55]
[1731066166152,0.7905,2924.8,2923.0,0.01]
[1731066166153,0.8005,2924.8,2923.4,0.7608]
[1731066166357,0.8182,2924.7,2923.5,0.55]
[1731066166835,0.8182,2924.6,2923.5,0.55]
[1731066168370,0.8182,2924.6,2923.2,0.35671009]
[1731066168371,0.7889,2924.5,2923.2,0.35671009]
[1731066168673,0.7789,2924.4,2923.2,0.36671009]
[1731066168836,0.7789,2924.3,2923.2,0.36671009]
[1731066169858,0.7789,2924.3,2923.3,0.55]
[1731066172982,0.7945,2923.9,2923.2,0.35671009]
[1731066174766,0.7945,2923.9,2923.3,0.55]
[1731066176461,0.7945,2923.9,2923.3,1.3163]
[1731066182991,0.7945,2923.9,2923.3,0.55]
[1731066189382,0.7566,2922.4,2921.8,0.55]
[1731066189712,0.7566,2922.4,2920.8,0.754]
[1731066189713,0.7566,2922.4,2921.2,0.01]
[1731066189876,0.7566,2922.2,2921.2,0.01]
[1731066190076,0.98477205,2922.2,2921.2,0.01]
[1731066190322,0.7566,2922.2,2921.2,0.01]
[1731066192773,0.7566,2922.2,2920.8,0.754]
[1731066192774,0.7566,2922.2,2921.3,0.01]
[1731066198039,0.7566,2922.2,2920.9,0.55]
[1731066198241,0.8171,2922.0,2920.7,0.01]
[1731066199018,0.38271,2921.9,2920.7,0.01]
[1731066199244,0.80939836,2921.8,2920.7,0.01]
[1731066201866,0.80939836,2921.8,2920.5,0.56]
[1731066203171,0.827,2921.3,2920.3,0.01]
[1731066204369,0.827,2921.3,2920.7,0.01]
[1731066205856,0.827,2921.3,2920.4,0.56]
[1731066210578,0.01,2921.2,2920.4,0.01]
[1731066210732,0.01,2921.2,2920.3,0.01]
[1731066210733,0.7586,2921.1,2920.3,0.01]
[1731066213650,0.7586,2921.1,2919.8,0.56]
[1731066213875,0.7586,2921.1,2920.4,0.3571053]
[1731066214191,0.7586,2921.1,2919.8,0.01]
[1731066214395,0.7769,2921.0,2920.4,0.35711251]
[1731066214751,0.7769,2921.0,2919.8,0.01]
[1731066214956,0.7769,2921.0,2920.4,0.35712263]
[1731066215183,0.7769,2921.0,2919.8,0.01]
[1731066216090,0.7769,2921.0,2919.9,0.35712299]
[1731066218070,0.7979,2920.8,2919.9,0.35712299]
[1731066226908,0.01,2920.5,2919.9,0.35712299]
[1731066227109,0.8302,2920.4,2919.9,0.35712299]
[1731066234081,0.8302,2920.4,2920.0,0.55]
[1731066234288,0.78,2920.6,2920.0,0.55]
[1731066234602,0.78,2920.6,2920.1,3.28732484]
[1731066234750,0.78,2920.6,2920.2,0.38373248]
[1731066235055,0.78,2920.6,2919.9,0.55]
[1731066235257,0.78,2920.6,2920.0,0.35711262]
[1731066267835,1.06872637,2920.5,2920.0,0.35711262]
[1731066268145,0.7771,2920.4,2920.0,0.35711262]
[1731066273111,0.754,2920.6,2920.1,0.8104]
[1731066273306,0.754,2920.6,2920.2,0.55]
[1731066273511,0.05138598,2920.7,2920.2,0.8814591]
[1731066275237,0.05138598,2920.7,2920.2,2.40004986]
[1731066277931,0.05138598,2920.7,2920.2,2.41004986]
[1731066282244,0.05138598,2920.7,2920.2,0.8914591]
[1731066282413,0.05138598,2920.7,2920.2,0.56]
[1731066289681,0.05138598,2920.7,2920.2,0.01]
[1731066289895,0.7894,2920.6,2920.1,0.35709188]
[1731066299485,1.85812637,2920.6,2920.1,0.35709188]
[1731066299646,0.7722,2920.4,2920.1,0.35709188]
[1731066301162,0.7797,2920.3,2920.1,0.35709188]
[1731066311812,1.06872637,2920.5,2920.1,0.35709188]
[1731066311813,0.7754,2920.5,2920.1,1.87568264]
[1731066312016,0.7754,2920.5,2920.1,2.63738264]
[1731066312221,0.7754,2920.5,2920.1,1.11879188]
[1731066312894,0.05138598,2920.7,2920.1,1.38253014]
[1731066312895,0.82678598,2920.7,2920.1,1.38253014]
[1731066313515,0.05138598,2920.7,2920.4,1.51859076]
[1731066313691,0.05138598,2920.7,2920.2,1.51859076]
[1731066314021,0.05138598,2920.7,2920.3,0.55]
[1731066317218,0.05138598,2920.7,2920.4,2.31759076]
[1731066317521,0.05138598,2920.7,2920.5,0.28675908]
[1731066317719,0.05138598,2920.7,2920.4,0.799]
[1731066318590,0.05138598,2920.7,2920.4,0.789]
[1731066319422,0.7759,2920.6,2920.2,0.01]
[1731066319622,0.7759,2920.6,2920.1,0.35706267]
[1731066321431,0.8229,2920.4,2920.1,0.35706267]
[1731066333906,0.8012,2920.6,2920.1,0.35706267]
[1731066334106,0.8012,2920.6,2920.1,1.87565343]
[1731066334504,0.8012,2920.6,2920.1,0.35706267]
[1731066335909,0.8012,2920.6,2920.1,1.87565343]
[1731066336243,0.8012,2920.6,2920.1,2.14646877]
[1731066337543,0.6512,2920.6,2920.1,2.14646877]
[1731066337749,0.05138598,2920.7,2920.2,0.7561]
[1731066340010,0.05138598,2920.7,2920.1,0.62787801]
[1731066340218,0.05138598,2920.7,2920.1,0.35706267]
[1731066340447,0.7842,2920.6,2920.1,0.35706267]
[1731066348772,0.7842,2920.6,2920.1,1.12846267]
[1731066349363,0.7842,2920.6,2920.1,0.35706267]
[1731066350452,0.7712,2920.5,2920.1,0.35706267]
[1731066350638,0.7712,2920.3,2920.1,0.35706267]
[1731066357366,1.06872637,2920.5,2920.1,0.35706267]
[1731066357367,1.85012637,2920.5,2920.1,0.35706267]
[1731066357577,0.7814,2920.5,2920.1,0.35706267]
[1731066359944,4.06872637,2920.7,2920.1,0.35706267]
[1731066360149,4.82062637,2920.7,2920.1,0.62064801]
[1731066360443,1.82062637,2920.7,2920.1,0.62064801]
[1731066360648,0.7519,2920.7,2920.1,2.13923877]
[1731066361544,0.7519,2920.7,2920.2,0.7557]
[1731066361749,1.06872637,2920.9,2920.2,0.7557]
[1731066362056,1.85022637,2920.9,2920.2,0.7557]
[1731066362260,1.85022637,2920.9,2920.2,1.04519388]
[1731066363149,0.7682,2920.8,2920.1,0.35706267]
[1731066363346,0.7682,2920.7,2920.1,0.35706267]
[1731066367172,4.06872637,2920.8,2920.2,0.7553]
[1731066368391,1.06872637,2920.8,2920.2,0.7553]
[1731066374972,1.82192637,2920.7,2920.1,0.35706267]
[1731066375202,1.06872637,2920.6,2920.1,0.35706267]
[1731066375788,1.82192637,2920.5,2920.1,0.35706267]
[1731066380479,1.06872637,2920.5,2920.1,0.35706267]
[1731066380687,1.06872637,2920.6,2920.1,0.35706267]
[1731066381502,1.06872637,2920.6,2920.2,0.8037]
[1731066381704,4.06872637,2920.7,2920.2,0.8037]
[1731066382792,1.83432637,2920.8,2920.2,0.8037]
[1731066383116,1.06872637,2920.9,2920.3,0.7963]
[1731066383368,1.06872637,2920.9,2920.4,0.23148908]
[1731066383725,4.06872637,2921.0,2920.4,0.23148908]
[1731066384150,1.06872637,2920.9,2920.4,0.23148908]
[1731066384461,4.06872637,2921.0,2920.4,0.23148908]
[1731066384634,1.06872637,2920.9,2920.4,0.23148908]
[1731066385430,4.06872637,2921.0,2920.4,0.23148908]
[1731066387674,4.06872637,2921.0,2920.3,0.7963]
[1731066387849,1.06872637,2921.0,2920.3,0.7963]
[1731066388054,0.04952064,2921.1,2920.3,0.7963]
[1731066388345,1.47836926,2921.1,2920.3,0.7963]
[1731066388559,4.47836926,2921.1,2920.3,0.7963]
[1731066388752,5.45593526,2921.1,2920.3,0.7963]
[1731066389775,4.07163647,2921.0,2920.3,0.7963]
[1731066395959,0.8312,2920.8,2920.3,0.7963]
[1731066398783,0.8312,2920.8,2920.2,0.35694239]
[1731066399797,1.07163647,2920.6,2920.2,0.35694239]
[1731066400278,1.58352595,2920.6,2920.2,0.35694239]
[1731066401281,4.58352595,2920.6,2920.2,0.35694239]
[1731066404916,1.07163647,2920.5,2920.2,0.35694239]
[1731066405212,4.07163647,2920.5,2920.2,0.35694239]
[1731066405415,1.07163647,2920.5,2920.2,0.35694239]
[1731066406802,1.67287393,2920.5,2920.2,0.35694239]
[1731066418921,0.60123746,2920.5,2920.2,0.35694239]
[1731066419627,4.07163647,2920.6,2920.2,0.35694239]
[1731066419790,1.07163647,2920.8,2920.3,0.7943]
[1731066421269,4.07163647,2920.8,2920.3,0.7943]
[1731066421983,1.07163647,2920.8,2920.3,0.7943]
[1731066422333,1.62168498,2920.8,2920.3,0.7943]
[1731066422540,1.87423647,2920.7,2920.3,0.7943]
[1731066422736,4.87423647,2920.7,2920.2,0.35694239]
[1731066423072,4.07163647,2920.6,2920.2,0.35694239]
[1731066424034,1.07163647,2920.5,2920.2,0.35694239]
[1731066424240,0.40716365,2920.4,2920.2,0.35694239]
[1731066426089,4.47880012,2920.4,2920.2,0.35694239]
[1731066426484,1.47880012,2920.4,2920.2,0.35694239]
[1731066427599,0.40716365,2920.4,2920.2,0.35694239]
[1731066427959,1.47880012,2920.4,2920.2,0.35694239]
[1731066428158,0.44788001,2920.3,2920.2,0.35694239]
[1731066429075,1.27518001,2920.3,2920.2,0.35694239]
[1731066432102,7.41540724,2920.3,2920.2,0.35694239]
[1731066432306,1.51859076,2920.1,2919.7,0.7748]
[1731066432512,0.50685908,2920.0,2919.7,0.7748]
[1731066432815,4.5813094,2920.0,2919.7,0.7748]
[1731066433226,4.5813094,2920.0,2919.5,0.7871]
[1731066435185,1.5813094,2920.0,2919.5,0.7871]
[1731066438283,0.50685908,2920.0,2919.5,0.7871]
[1731066438485,4.07445032,2920.1,2919.5,0.7871]
[1731066438684,1.07445032,2920.0,2919.5,0.7871]
[1731066439193,4.07445032,2920.1,2919.5,0.7871]
[1731066439389,1.07445032,2920.0,2919.5,0.7871]
[1731066439821,4.07445032,2920.1,2919.5,0.7871]
[1731066440027,5.08342858,2920.1,2919.5,0.7871]
[1731066442905,0.773,2920.0,2919.4,0.35509506]
[1731066444445,3.36604108,2920.0,2919.4,0.35509506]
[1731066444609,1.90135032,2919.8,2919.4,0.35509506]
[1731066444941,1.70784539,2919.7,2919.4,0.35509506]
[1731066445240,0.63339507,2919.7,2919.4,0.35509506]
[1731066450733,0.63339507,2919.7,2919.5,0.7738]
[1731066451251,0.63339507,2919.7,2919.4,0.35509506]
[1731066452447,1.40189507,2919.7,2919.4,0.35509506]
[1731066456256,0.29204858,2919.6,2919.4,0.35509506]
[1731066457327,0.7685,2919.7,2919.4,0.35509506]
[1731066457568,1.378,2919.9,2919.4,1.15949506]
[1731066458056,1.51859076,2919.6,2919.4,0.35509506]
[1731066458945,0.828,2919.7,2919.4,0.35509506]
[1731066459146,0.23465908,2919.6,2919.4,0.35509506]
[1731066466755,0.23465908,2919.6,2918.7,0.812]
[1731066466756,3.8191,2919.5,2918.7,0.812]
[1731066467078,1.51859076,2919.4,2918.7,0.812]
[1731066467246,2.06859076,2919.2,2918.0,0.01]
[1731066467451,1.51859076,2919.0,2918.5,0.35482684]
[1731066467757,1.51859076,2919.0,2918.2,0.01]
[1731066468162,1.51859076,2919.0,2918.5,0.35485057]
[1731066469171,3.96175908,2919.1,2918.5,0.35485057]
[1731066469382,0.60303498,2919.0,2918.5,0.35485057]
[1731066471480,0.60303498,2919.0,2918.6,0.7745]
[1731066473644,0.20685908,2919.1,2918.6,0.7745]
[1731066473871,5.06859076,2919.3,2918.6,0.7745]
[1731066479975,4.51859076,2919.3,2918.6,0.7745]
[1731066482979,4.07248753,2919.5,2918.6,0.7745]
[1731066483182,1.62248753,2919.4,2918.6,0.7745]
[1731066483395,0.46224875,2919.3,2918.6,0.7745]
[1731066484006,3.46224875,2919.3,2918.6,0.7745]
[1731066484203,0.46224875,2919.3,2918.6,0.7745]
[1731066484519,1.78652325,2919.7,2918.8,0.8261]
[1731066484520,1.07248753,2919.7,2918.8,0.8261]
[1731066484676,1.07248753,2919.7,2918.8,0.8361]
[1731066485016,1.07248753,2919.8,2918.8,0.8361]
[1731066485174,1.56299484,2919.8,2918.9,0.7513]
[1731066486581,4.5627837,2919.8,2918.9,0.7513]
[1731066487605,3.0,2919.8,2918.9,0.7513]
[1731066487811,4.07227639,2919.9,2919.1,1.51859076]
[1731066487984,0.05041145,2920.0,2919.2,0.8319]
[1731066488916,0.05041145,2920.0,2919.5,0.8319]
[1731066489428,0.05041145,2920.0,2919.5,1.75463984]
[1731066489580,0.05041145,2920.0,2919.6,0.7679]
[1731066497103,0.05041145,2920.0,2919.6,0.7579]
[1731066497426,0.05041145,2920.0,2919.6,0.7679]
[1731066500698,0.05041145,2920.0,2919.6,0.7579]
[1731066501811,0.05041145,2920.0,2919.6,0.7679]
[1731066502632,0.05041145,2920.0,2919.6,0.7579]
[1731066502796,0.7693,2919.9,2919.3,0.7884]
[1731066504631,0.23383022,2919.9,2919.3,0.7884]
[1731066504934,1.51859076,2919.9,2919.3,0.7884]
[1731066505436,1.51859076,2919.7,2919.1,0.7708]
[1731066505735,0.55,2919.6,2919.0,0.35502252]
[1731066505898,1.51859076,2919.5,2919.0,0.35502252]
[1731066506099,0.20685908,2919.4,2919.0,0.35502252]
[1731066506401,1.51859076,2919.3,2919.0,0.35502252]
[1731066507324,3.84416595,2919.6,2919.0,0.35502252]
[1731066507533,0.55,2919.4,2919.0,0.35502252]
[1731066507833,0.7512,2919.3,2919.0,0.35502252]
[1731066516848,0.84133661,2919.6,2919.0,1.13112252]
[1731066518322,1.22547027,2919.6,2919.0,1.13112252]
[1731066527596,4.22547027,2919.6,2919.0,1.13112252]
[1731066530455,0.84133661,2919.6,2919.0,1.13112252]
[1731066530783,0.04983661,2919.6,2919.0,1.13112252]
[1731066531595,0.04983661,2919.6,2919.0,0.35502252]
[1731066531596,2.88341874,2919.5,2919.0,0.35502252]
[1731066534560,0.55,2919.3,2919.0,0.35502252]
[1731066540610,3.0,2919.4,2919.1,0.802]
[1731066540783,4.11870132,2919.6,2919.1,0.802]
[1731066541136,3.04983661,2919.6,2919.1,0.802]
[1731066542270,2.08389075,2919.5,2919.1,0.802]
[1731066543701,4.3066,2919.4,2919.0,0.35502252]
[1731066544975,1.06886471,2919.5,2919.1,0.7863]
[1731066545171,4.11870132,2919.6,2919.1,0.7863]
[1731066545614,0.04983661,2919.6,2919.1,0.7863]
[1731066549613,1.11870132,2919.6,2919.1,0.7863]
[1731066553827,0.04983661,2919.6,2919.1,0.7863]
[1731066554205,3.34511782,2919.6,2919.1,0.7863]
[1731066554404,1.06886471,2919.4,2919.0,0.35502252]
[1731066555434,1.06886471,2919.2,2919.0,0.35502252]
[1731066564006,1.06886471,2919.3,2919.0,0.35502252]
[1731066564207,4.06886471,2919.5,2919.1,0.8017]
[1731066564413,1.06886471,2919.5,2919.1,0.8017]
[1731066565917,4.11870132,2919.6,2919.1,0.8017]
[1731066567761,1.11870132,2919.6,2919.1,0.8017]
[1731066568050,0.04983661,2919.6,2919.1,0.8017]
[1731066569024,0.04983661,2919.6,2919.1,0.8117]
[1731066569522,0.04983661,2919.6,2919.2,0.8296]
[1731066569821,0.04983661,2919.6,2919.2,0.8196]
[1731066570924,0.04983661,2919.6,2919.2,0.8296]
[1731066571253,0.04983661,2919.6,2919.2,0.8196]
[1731066574424,0.04983661,2919.6,2919.2,0.8296]
[1731066575656,0.04983661,2919.6,2919.5,0.02]
[1731066575820,0.04983661,2919.6,2919.5,0.8185]
[1731066579625,0.04983661,2919.6,2919.5,1.05235187]
[1731066580055,0.04983661,2919.6,2919.5,0.8185]
[1731066601990,0.7763,2920.1,2919.5,0.8185]
[1731066602762,0.7763,2920.1,2919.7,0.01]
[1731066603101,0.7763,2920.1,2919.7,0.02]
[1731066603398,0.7763,2920.1,2919.7,0.01]
[1731066609268,0.7763,2920.1,2919.5,0.8185]